fUSD/lending_fUSD_20250504
["ID","MTS","AMOUNT","RATE_DAILY","PERIOD"]
[359781976,1746340242444,-450.0,0.00019979,2]
[359781977,1746340242453,-450.0,0.00019979,2]
[359781978,1746340242463,-656.54,0.00019979,2]
[359781979,1746340242474,-450.0,0.00019979,2]
[359781980,1746340242483,-450.0,0.00019979,2]
[359781981,1746340242494,-450.0,0.00019979,2]
[359781982,1746340242505,-692.26,0.00019979,2]
[359781983,1746340242515,-450.0,0.00019979,2]
[359781984,1746340242524,-1423.91,0.00019979,2]
[359781985,1746340242534,-586.47,0.00019979,2]
[359781986,1746340242543,-227.27152679,0.00019979,2]
[359781987,1746340242553,-450.0,0.00019979,2]
[359781988,1746340242562,-450.0,0.00019979,2]
[359781989,1746340242571,-450.0,0.00019979,2]
[359781990,1746340242580,-530.27,0.00019979,2]
[359781991,1746340242590,-450.0,0.00019979,2]
[359781992,1746340242599,-450.0,0.00019979,2]
[359781993,1746340242609,-450.0,0.00019979,2]
[359781994,1746340242618,-879.29,0.00019979,2]
[359781995,1746340242627,-450.0,0.00019979,2]
[359781996,1746340242637,-450.0,0.00019979,2]
[359781997,1746340242646,-450.0,0.00019979,2]
[359781998,1746340242655,-484.84,0.00019979,2]
[359781999,1746340242665,-450.0,0.00019979,2]
[359782000,1746340242674,-683.18,0.00019979,2]
[359782001,1746340242683,-450.0,0.00019979,2]
[359782002,1746340242693,-450.0,0.00019979,2]
[359782003,1746340242702,-307.31363188,0.00019979,2]
[359782004,1746340242710,-548.2,0.00019979,2]
[359782005,1746340242719,-450.0,0.00019979,2]
[359782006,1746340242728,-450.0,0.00019979,2]
[359782007,1746340242737,-450.0,0.00019979,2]
[359782008,1746340242746,-450.0,0.00019979,2]
[359782009,1746340242755,-1456.78,0.00019979,2]
[359782010,1746340242764,-450.0,0.00019979,2]
[359782011,1746340242773,-450.0,0.00019979,2]
[359782012,1746340242782,-872.38,0.00019979,2]
[359782013,1746340242791,-450.0,0.00019979,2]
[359782014,1746340242800,-759.73,0.00019979,2]
[359782015,1746340242810,-549.69664414,0.00019979,2]
[359782016,1746340242820,-450.0,0.00019979,2]
[359782017,1746340242829,-450.0,0.00019979,2]
[359782018,1746340242838,-450.0,0.00019979,2]
[359782019,1746340242848,-450.0,0.00019979,2]
[359782020,1746340242857,-9034.2973112,0.00019986,2]
[359782021,1746340242867,-13458.4801818,0.00019986,2]
[359782022,1746340242876,-1809.6489686,0.00019986,2]
[359782023,1746340242885,-42062.1339421,0.00019986,2]
[359782024,1746340242894,-4024.0640742,0.00019986,2]
[359782025,1746340242903,-60472.2437567,0.00019986,2]
[359782027,1746340242912,-500.0,0.00019999,2]
[359782029,1746340242921,-311.93520587,0.00019999,2]
[359782031,1746340242930,-500.0,0.00019999,2]
[359782033,1746340242940,-500.0,0.00019999,2]
[359782034,1746340242949,-283.08598319,0.00019999,2]
[359782035,1746340242958,-478.92,0.00019999,2]
[359782036,1746340242967,-11039.40926765,0.00019999,2]
[359782037,1746340242976,-500.0,0.00019999,2]
[359782038,1746340242985,-500.0,0.00019999,2]
[359782039,1746340242995,-500.0,0.00019999,2]
[359782041,1746340243004,-334.73930631,0.00019999,2]
[359782045,1746340243014,-500.0,0.00019999,2]
[359782046,1746340243023,-500.0,0.00019999,2]
[359782047,1746340243032,-500.0,0.00019999,2]
[359782048,1746340243041,-500.0,0.00019999,2]
[359782049,1746340243050,-170.74128349,0.00019999,2]
[359782050,1746340243059,-500.0,0.00019999,2]
[359782051,1746340243068,-334.73930631,0.00019999,2]
[359782052,1746340243077,-191.64005959,0.00019999,2]
[359782053,1746340243086,-740.0,0.00019999,2]
[359782054,1746340243095,-571.03405357,0.0002,2]
[359782055,1746340243105,-3147719.29475892,0.0002,2]
[359782056,1746340243114,-2000.0,0.0002,4]
[359782057,1746340243123,-2000.0,0.0002,4]
[359782058,1746340243132,-2000.0,0.0002,4]
[359782059,1746340243141,-2000.0,0.0002,4]
[359782060,1746340243150,-2000.0,0.0002,4]
[359782061,1746340243159,-2000.0,0.0002,4]
[359782062,1746340243168,-292778.66165719,0.0002,2]
[359782073,1746340243660,-2260.76583272,0.00019978,2]
[359782074,1746340243671,-220.96416728,0.00019978,2]
[359782075,1746340243682,-71.41083247,0.0002,2]
[359782076,1746340246250,-1064.68800062,0.00019978,2]
[359782077,1746340246262,-373.68199938,0.00019978,2]
[359782078,1746340246271,-7363.83800062,0.0002,2]
[359782079,1746340381632,27803.76,0.00019119,2]
[359782080,1746340485572,189.36,0.00019087,2]
[359782081,1746340534616,623.53,0.00017157,2]
[359782082,1746340534817,623.53,0.00019421,2]
[359782083,1746340551685,815354.0,0.0003,30]
[359782086,1746340848183,283.59,0.00019502,2]
[359782087,1746340947651,1982.03156207,0.00019,2]
[359782088,1746340993472,162.28,0.00019011,2]
[359782089,1746341033634,23890.0,0.00019008,2]
[359782090,1746341061731,151.13832585,0.00018913,2]
[359782091,1746341118174,1000.0,0.00018996,2]
[359782098,1746341150774,158.28,0.0001902,2]
[359782099,1746341207337,151.54,0.00019038,2]
[359782100,1746341207562,151.54,0.00019086,2]
[359782101,1746341207758,151.54,0.00019133,2]
[359782116,1746341351261,154.7882584,0.000195,2]
[359782117,1746341366398,2410.0,0.0003,30]
[359782133,1746341432180,-165.93,0.00019594,2]
[359782135,1746341432190,-200.0,0.00019697,2]
[359782137,1746341432199,-150.48424008,0.00019776,2]
[359782140,1746341432209,-166.092428,0.00019799,2]
[359782141,1746341432219,-200.0,0.00019806,2]
[359782142,1746341432229,-347.86478361,0.00019857,2]
[359782143,1746341432283,-275.65034164,0.00019857,2]
[359782186,1746341438311,-546.66327439,0.00019857,2]
[359782187,1746341438349,-377.66110036,0.00019857,2]
[359782188,1746341438359,-1160.50474888,0.00019876,2]
[359782189,1746341438478,-39.49525112,0.00019876,2]
[359782190,1746341438489,-300.0,0.00019876,2]
[359782191,1746341438499,-44.65719827,0.00019877,2]
[359782204,1746341440548,-56584.63888945,0.00019877,2]
[359782205,1746341440559,-153.33264665,0.00019884,2]
[359782206,1746341440568,-207.4,0.00019888,2]
[359782207,1746341440577,-500.0,0.00019895,2]
[359782208,1746341440586,-500.0,0.00019895,2]
[359782209,1746341440597,-500.0,0.00019895,2]
[359782210,1746341440606,-500.0,0.00019895,2]
[359782211,1746341440615,-500.0,0.00019895,2]
[359782212,1746341440625,-500.0,0.00019895,2]
[359782213,1746341440634,-500.0,0.00019895,2]
[359782214,1746341440643,-500.0,0.00019895,2]
[359782215,1746341440652,-500.0,0.00019895,2]
[359782216,1746341440661,-500.0,0.00019895,2]
[359782217,1746341440670,-500.0,0.00019895,2]
[359782218,1746341440679,-430.36753073,0.00019895,2]
[359782219,1746341440688,-500.0,0.00019895,2]
[359782220,1746341440698,-500.0,0.00019895,2]
[359782221,1746341440707,-500.0,0.00019895,2]
[359782222,1746341440716,-2300.00588663,0.000199,2]
[359782223,1746341440726,-382.76191754,0.000199,2]
[359782224,1746341440735,-3708.86548242,0.000199,2]
[359782225,1746341440744,-12972.2853157,0.000199,2]
[359782226,1746341440753,-1067.55241048,0.000199,2]
[359782227,1746341440763,-7118.38583939,0.00019957,2]
[359782228,1746341440773,-500.0,0.00019973,2]
[359782229,1746341440782,-500.0,0.00019973,2]
[359782230,1746341440792,-508.22139072,0.00019973,2]
[359782231,1746341440802,-500.0,0.00019973,2]
[359782232,1746341440811,-500.0,0.00019973,2]
[359782233,1746341440821,-500.0,0.00019973,2]
[359782234,1746341440831,-1640.289,0.00019973,2]
[359782235,1746341440840,-182.598,0.00019973,2]
[359782236,1746341440849,-151.0,0.00019974,2]
[359782238,1746341440858,-450.0,0.00019977,2]
[359782239,1746341440867,-450.0,0.00019977,2]
[359782240,1746341440877,-450.0,0.00019977,2]
[359782241,1746341440886,-450.0,0.00019977,2]
[359782242,1746341440896,-450.0,0.00019977,2]
[359782243,1746341440905,-450.0,0.00019977,2]
[359782244,1746341440915,-450.0,0.00019977,2]
[359782245,1746341440924,-227.27152679,0.00019977,2]
[359782246,1746341440933,-450.0,0.00019977,2]
[359782247,1746341440943,-450.0,0.00019977,2]
[359782248,1746341440952,-586.47,0.00019977,2]
[359782249,1746341440961,-530.27,0.00019977,2]
[359782250,1746341440971,-450.0,0.00019977,2]
[359782251,1746341440981,-496.53,0.00019977,2]
[359782252,1746341440990,-450.0,0.00019977,2]
[359782253,1746341440999,-450.0,0.00019977,2]
[359782254,1746341441009,-450.0,0.00019977,2]
[359782255,1746341441018,-510.51701814,0.00019977,2]
[359782256,1746341441027,-450.0,0.00019977,2]
[359782257,1746341441036,-879.29,0.00019977,2]
[359782258,1746341441046,-450.0,0.00019977,2]
[359782259,1746341441055,-450.0,0.00019977,2]
[359782260,1746341441064,-484.84,0.00019977,2]
[359782261,1746341441073,-450.0,0.00019977,2]
[359782262,1746341441083,-450.0,0.00019977,2]
[359782263,1746341441092,-713.61,0.00019977,2]
[359782264,1746341441102,-450.0,0.00019977,2]
[359782265,1746341441112,-450.0,0.00019977,2]
[359782266,1746341441121,-450.0,0.00019977,2]
[359782267,1746341441130,-450.0,0.00019977,2]
[359782268,1746341441140,-450.0,0.00019977,2]
[359782269,1746341441149,-450.0,0.00019977,2]
[359782270,1746341441159,-683.18,0.00019977,2]
[359782271,1746341441168,-307.31363188,0.00019977,2]
[359782272,1746341441177,-885.13,0.00019977,2]
[359782273,1746341441186,-450.0,0.00019977,2]
[359782274,1746341441195,-450.0,0.00019977,2]
[359782275,1746341441204,-511.15,0.00019977,2]
[359782276,1746341441214,-450.0,0.00019977,2]
[359782277,1746341441246,-450.0,0.00019977,2]
[359782278,1746341441261,-450.0,0.00019977,2]
[359782279,1746341441272,-450.0,0.00019977,2]
[359782280,1746341441281,-548.2,0.00019977,2]
[359782281,1746341441291,-450.0,0.00019977,2]
[359782282,1746341441301,-450.0,0.00019977,2]
[359782283,1746341441311,-450.0,0.00019977,2]
[359782284,1746341441320,-450.0,0.00019977,2]
[359782285,1746341441329,-1575.7,0.00019977,2]
[359782286,1746341441339,-450.0,0.00019977,2]
[359782287,1746341441348,-450.0,0.00019977,2]
[359782288,1746341441357,-450.0,0.00019977,2]
[359782289,1746341441367,-692.26,0.00019977,2]
[359782290,1746341441375,-450.0,0.00019977,2]
[359782291,1746341441385,-450.0,0.00019977,2]
[359782292,1746341441395,-1456.78,0.00019977,2]
[359782293,1746341441404,-1423.91,0.00019977,2]
[359782294,1746341441413,-450.0,0.00019977,2]
[359782295,1746341441422,-450.0,0.00019977,2]
[359782296,1746341441431,-872.38,0.00019977,2]
[359782297,1746341441440,-450.0,0.00019977,2]
[359782298,1746341441449,-759.73,0.00019977,2]
[359782299,1746341441459,-450.0,0.00019977,2]
[359782300,1746341441468,-549.69664414,0.00019977,2]
[359782301,1746341441482,-450.0,0.00019977,2]
[359782302,1746341441491,-450.0,0.00019977,2]
[359782303,1746341441501,-450.0,0.00019977,2]
[359782304,1746341441510,-500.0,0.00019977,2]
[359782305,1746341441520,-150.0,0.00019977,2]
[359782306,1746341441529,-500.0,0.00019977,2]
[359782307,1746341441538,-500.0,0.00019978,2]
[359782308,1746341441547,-150.0,0.00019978,2]
[359782309,1746341441556,-330.04417946,0.00019983,2]
[359782310,1746341441566,-450.0,0.00019983,2]
[359782311,1746341441575,-450.0,0.00019983,2]
[359782312,1746341441584,-450.0,0.00019983,2]
[359782313,1746341441593,-3780.26,0.00019983,2]
[359782314,1746341441603,-450.0,0.00019983,2]
[359782315,1746341441611,-450.0,0.00019983,2]
[359782316,1746341441621,-450.0,0.00019983,2]
[359782317,1746341441630,-450.0,0.00019983,2]
[359782318,1746341441639,-450.0,0.00019983,2]
[359782319,1746341441648,-561.65,0.00019983,2]
[359782320,1746341441657,-450.0,0.00019983,2]
[359782321,1746341441666,-1213.01,0.00019983,2]
[359782322,1746341441674,-1355.29,0.00019983,2]
[359782323,1746341441683,-2932.97,0.00019983,2]
[359782324,1746341441692,-450.0,0.00019983,2]
[359782325,1746341441701,-450.0,0.00019983,2]
[359782326,1746341441710,-633.49,0.00019983,2]
[359782327,1746341441719,-2445.17,0.00019983,2]
[359782328,1746341441728,-552.75,0.00019984,2]
[359782329,1746341441737,-469.98,0.00019984,2]
[359782330,1746341441747,-450.0,0.00019984,2]
[359782331,1746341441756,-450.0,0.00019984,2]
[359782332,1746341441765,-450.0,0.00019984,2]
[359782333,1746341441775,-450.0,0.00019984,2]
[359782334,1746341441784,-450.0,0.00019984,2]
[359782335,1746341441793,-450.0,0.00019984,2]
[359782336,1746341441803,-450.0,0.00019984,2]
[359782337,1746341441812,-450.0,0.00019984,2]
[359782338,1746341441821,-450.0,0.00019984,2]
[359782339,1746341441830,-786.78,0.00019984,2]
[359782340,1746341441839,-450.0,0.00019984,2]
[359782341,1746341441848,-450.0,0.00019984,2]
[359782342,1746341441858,-450.0,0.00019984,2]
[359782343,1746341441867,-450.0,0.00019984,2]
[359782344,1746341441877,-450.0,0.00019984,2]
[359782345,1746341441886,-450.0,0.00019984,2]
[359782346,1746341441896,-450.0,0.00019984,2]
[359782347,1746341441905,-450.0,0.00019984,2]
[359782348,1746341441915,-2353.93,0.00019984,2]
[359782349,1746341441925,-450.0,0.00019984,2]
[359782350,1746341441934,-56272.67,0.00019984,2]
[359782351,1746341441944,-572.57,0.00019984,2]
[359782352,1746341441953,-450.0,0.00019984,2]
[359782353,1746341441963,-950.41,0.00019984,2]
[359782354,1746341441972,-450.0,0.00019984,2]
[359782355,1746341441981,-450.0,0.00019984,2]
[359782356,1746341441991,-2922.02,0.00019984,2]
[359782357,1746341442000,-450.0,0.00019984,2]
[359782358,1746341442009,-739.11,0.00019984,2]
[359782359,1746341442018,-450.0,0.00019984,2]
[359782360,1746341442027,-450.0,0.00019984,2]
[359782361,1746341442036,-13595.63,0.00019984,2]
[359782362,1746341442045,-450.0,0.00019984,2]
[359782363,1746341442054,-450.0,0.00019984,2]
[359782364,1746341442063,-450.0,0.00019984,2]
[359782365,1746341442072,-898.76,0.00019984,2]
[359782366,1746341442083,-450.0,0.00019984,2]
[359782367,1746341442093,-450.0,0.00019984,2]
[359782368,1746341442103,-450.0,0.00019984,2]
[359782369,1746341442114,-450.0,0.00019984,2]
[359782370,1746341442123,-7709.36,0.00019984,2]
[359782371,1746341442132,-450.0,0.00019984,2]
[359782372,1746341442142,-659.06,0.00019984,2]
[359782373,1746341442150,-450.0,0.00019984,2]
[359782374,1746341442159,-1367.07,0.00019984,2]
[359782375,1746341442168,-450.0,0.00019984,2]
[359782376,1746341442177,-1755.49,0.00019984,2]
[359782377,1746341442188,-450.0,0.00019984,2]
[359782378,1746341442197,-450.0,0.00019984,2]
[359782379,1746341442207,-450.0,0.00019984,2]
[359782380,1746341442216,-651.33,0.00019984,2]
[359782381,1746341442225,-387.82959739,0.00019984,2]
[359782382,1746341442234,-450.0,0.00019984,2]
[359782383,1746341442244,-450.0,0.00019984,2]
[359782384,1746341442253,-508.85,0.00019984,2]
[359782385,1746341442262,-450.0,0.00019984,2]
[359782386,1746341442273,-450.0,0.00019984,2]
[359782387,1746341442282,-450.0,0.00019984,2]
[359782388,1746341442291,-878.01,0.00019984,2]
[359782389,1746341442300,-450.0,0.00019984,2]
[359782390,1746341442309,-532.32903879,0.00019984,2]
[359782391,1746341442319,-278.13311498,0.00019984,2]
[359782392,1746341442328,-450.0,0.00019984,2]
[359782393,1746341442337,-62713.38,0.00019984,2]
[359782394,1746341442346,-450.0,0.00019984,2]
[359782395,1746341442355,-450.0,0.00019984,2]
[359782396,1746341442365,-450.0,0.00019984,2]
[359782397,1746341442374,-450.0,0.00019984,2]
[359782398,1746341442383,-3280.52,0.00019984,2]
[359782399,1746341442392,-574.59,0.00019984,2]
[359782400,1746341442401,-370.05556011,0.00019984,2]
[359782401,1746341442410,-175.91448904,0.00019984,2]
[359782402,1746341442419,-450.0,0.00019984,2]
[359782403,1746341442427,-498.54,0.00019984,2]
[359782404,1746341442436,-450.0,0.00019984,2]
[359782405,1746341442445,-450.0,0.00019984,2]
[359782406,1746341442454,-450.0,0.00019984,2]
[359782407,1746341442463,-537.91,0.00019984,2]
[359782408,1746341442473,-450.0,0.00019984,2]
[359782409,1746341442482,-450.0,0.00019984,2]
[359782410,1746341442491,-2518.08,0.00019984,2]
[359782411,1746341442500,-1447.94,0.00019984,2]
[359782412,1746341442509,-450.0,0.00019984,2]
[359782413,1746341442519,-450.0,0.00019984,2]
[359782414,1746341442527,-450.0,0.00019984,2]
[359782415,1746341442536,-1113.43,0.00019984,2]
[359782416,1746341442545,-439.81400919,0.00019984,2]
[359782417,1746341442554,-1140.77,0.00019984,2]
[359782418,1746341442563,-450.0,0.00019984,2]
[359782419,1746341442572,-452.08,0.00019984,2]
[359782420,1746341442581,-450.0,0.00019984,2]
[359782421,1746341442590,-450.0,0.00019984,2]
[359782422,1746341442600,-536.87,0.00019984,2]
[359782423,1746341442608,-598.69,0.00019984,2]
[359782424,1746341442617,-450.0,0.00019984,2]
[359782425,1746341442626,-568.18,0.00019984,2]
[359782426,1746341442635,-450.0,0.00019984,2]
[359782427,1746341442644,-450.0,0.00019984,2]
[359782428,1746341442652,-685.29,0.00019984,2]
[359782429,1746341442662,-542.49,0.00019984,2]
[359782430,1746341442670,-526.48,0.00019984,2]
[359782431,1746341442680,-3474.15,0.00019984,2]
[359782432,1746341442689,-450.0,0.00019984,2]
[359782433,1746341442698,-623.77,0.00019984,2]
[359782434,1746341442708,-1440.97,0.00019984,2]
[359782435,1746341442718,-3328.58,0.00019984,2]
[359782436,1746341442729,-548.83,0.00019984,2]
[359782437,1746341442739,-2378.33,0.00019984,2]
[359782438,1746341442748,-5126.4965856,0.00019986,2]
[359782439,1746341442760,-26861.1497183,0.00019986,2]
[359782440,1746341442769,-11770.387417,0.00019986,2]
[359782441,1746341442778,-500.0,0.00019999,2]
[359782442,1746341442787,-283.08598319,0.00019999,2]
[359782443,1746341442797,-500.0,0.00019999,2]
[359782444,1746341442806,-500.0,0.00019999,2]
[359782445,1746341442816,-500.0,0.00019999,2]
[359782446,1746341442825,-311.93520587,0.00019999,2]
[359782447,1746341442834,-478.92,0.00019999,2]
[359782448,1746341442844,-600.0,0.00019999,2]
[359782449,1746341442853,-200.42179189,0.00019999,2]
[359782450,1746341442862,-500.0,0.00019999,2]
[359782451,1746341442871,-740.0,0.00019999,2]
[359782452,1746341442880,-571.03405357,0.0002,2]
[359782453,1746341442889,-3147719.29475892,0.0002,2]
[359782454,1746341442898,-246997.62634235,0.0002,2]
[359782455,1746341442907,-63997.78230962,0.0002,2]
[359782456,1746341443113,-2182.0,0.0002,2]
[359782457,1746341444002,-450.0,0.00019983,2]
[359782458,1746341444014,-450.0,0.00019983,2]
[359782459,1746341444025,-2922.52695706,0.00019986,2]
[359782460,1746341444039,-5129.72235711,0.00019986,2]
[359782461,1746341444061,-1642.47750401,0.00019986,2]
[359782462,1746341444168,-271.92848716,0.00019986,2]
[359782463,1746341444179,-3797.68104727,0.00019986,2]
[359782464,1746341444198,-1795.66259684,0.00019986,2]
[359782465,1746341444208,-284.00418057,0.00019986,2]
[359782466,1746341444308,-537.88414791,0.00019986,2]
[359782467,1746341444319,-2039.30178093,0.00019986,2]
[359782508,1746341446241,-450.0,0.00019984,2]
[359782509,1746341446251,-683.87,0.00019984,2]
[359782510,1746341446260,-15145.71931408,0.00019986,2]
[359782511,1746341446289,-11129.73079146,0.00019986,2]
[359782512,1746341446299,-25519.14676745,0.0002,2]
[359782513,1746341446309,-301.4080882,0.0002,2]
[359782514,1746341446318,-10000.0,0.0002,2]
[359782515,1746341446327,-1483.45349757,0.0002,2]
[359782516,1746341446337,-4305.94775952,0.0002,2]
[359782517,1746341446346,-481.47231778,0.0002,2]
[359782518,1746341446355,-50000.0,0.0002,2]
[359782519,1746341446365,-5655.83784573,0.0002,2]
[359782520,1746341446375,-106783.49149716,0.0002,2]
[359782521,1746341446387,-924.87105184,0.0002,2]
[359782522,1746341446407,-302.0,0.0002,2]
[359782523,1746341446436,-38548.6271838,0.0002,2]
[359782524,1746341446458,-710.81898075,0.0002,2]
[359782525,1746341446471,-2647.73328687,0.0002,2]
[359782526,1746341446483,-1729.24609705,0.0002,2]
[359782527,1746341446556,-3802.11530253,0.0002,2]
[359782530,1746341468532,200.0,0.00019231,2]
[359782531,1746341537012,206.22,0.00030137,120]
[359782532,1746341539923,631.19,0.00017208,2]
[359782533,1746341540147,631.19,0.00019472,2]
[359782534,1746341659230,189.36,0.00019088,2]
[359782535,1746341669204,518.9717794,0.0003013,120]
[359782536,1746341688482,150.0,0.00019,2]
[359782537,1746341695832,150.0,0.00019,2]
[359782538,1746341705643,150.0,0.00019,2]
[359782539,1746341713836,175.0,0.00019,2]
[359782540,1746341721513,231.0,0.00019,2]
[359782541,1746341736910,454.3509322,0.0003,120]
[359782542,1746341742608,5000.0,0.00019502,2]
[359782543,1746341772372,700.0,0.00030137,120]
[359782544,1746341845543,250.0,0.00017,2]
[359782545,1746341846672,300.0,0.00019,2]
[359782554,1746342218182,157.29,0.00019026,2]
[359782555,1746342218384,157.29,0.00019032,2]
[359782556,1746342218609,157.29,0.00019039,2]
[359782557,1746342218812,157.29,0.00019045,2]
[359782558,1746342219022,157.29,0.00019051,2]
[359782559,1746342219408,157.29,0.00019058,2]
[359782560,1746342219658,157.29,0.00019064,2]
[359782561,1746342219827,157.29,0.0001907,2]
[359782562,1746342220027,157.29,0.00019077,2]
[359782563,1746342220341,157.29,0.00019083,2]
[359782564,1746342220404,157.29,0.00019089,2]
[359782565,1746342220592,157.29,0.00019096,2]
[359782566,1746342220983,157.29,0.00019102,2]
[359782567,1746342221192,157.29,0.00019108,2]
[359782568,1746342221392,157.29,0.00019115,2]
[359782569,1746342221593,157.29,0.00019121,2]
[359782570,1746342249883,-188.69,0.00019559,2]
[359782571,1746342303181,256.16,0.00019011,2]
[359782572,1746342308655,211.60233432,0.0002,23]
[359782580,1746342479933,6121.6,0.00018941,2]
[359782581,1746342481243,1000.0,0.00018941,2]
[359782584,1746342549075,634.94,0.00017023,2]
[359782585,1746342549280,634.94,0.00019287,2]
[359782588,1746342631456,-159.19,0.00019597,2]
[359782589,1746342631466,-250.0,0.00019608,2]
[359782590,1746342631475,-200.0,0.0001962,2]
[359782591,1746342631484,-103.61182721,0.00019784,2]
[359782592,1746342631574,-840.08474865,0.00019784,2]
[359782593,1746342631583,-166.75376445,0.00019788,2]
[359782594,1746342631592,-163.9893417,0.00019799,2]
[359782595,1746342631601,-207.4,0.00019872,2]
[359782596,1746342631611,-300.0,0.00019882,2]
[359782597,1746342631619,-403.53343582,0.00019882,2]
[359782598,1746342631630,-663.86994497,0.00019882,2]
[359782599,1746342631680,-132.59661921,0.00019882,2]
[359782600,1746342631689,-224.63303145,0.00019883,2]
[359782601,1746342631698,-300.0,0.00019883,2]
[359782602,1746342631707,-12624.946,0.00019884,2]
[359782603,1746342631716,-500.0,0.00019884,2]
[359782604,1746342631726,-224.63303137,0.00019885,2]
[359782605,1746342631735,-157.55599213,0.00019886,2]
[359782606,1746342631744,-224.63303137,0.00019887,2]
[359782607,1746342631754,-224.63303137,0.00019889,2]
[359782608,1746342631763,-224.63303137,0.00019891,2]
[359782609,1746342631772,-224.63303137,0.00019892,2]
[359782610,1746342631781,-224.63303137,0.00019894,2]
[359782612,1746342631790,-224.63303137,0.00019896,2]
[359782614,1746342631800,-224.63303137,0.00019898,2]
[359782616,1746342631809,-224.63303137,0.000199,2]
[359782617,1746342631818,-2445.17,0.000199,2]
[359782619,1746342631827,-7619.57664391,0.000199,2]
[359782622,1746342631838,-1661.53110685,0.000199,2]
[359782746,1746342637444,-3258.76805461,0.000199,2]
[359782747,1746342637454,-173.61940952,0.000199,2]
[359782748,1746342637464,-183.62881887,0.000199,2]
[359782749,1746342637475,-71.54579283,0.000199,2]
[359782750,1746342637484,-711.70160698,0.000199,2]
[359782751,1746342637493,-1140.0,0.00019956,2]
[359782752,1746342637502,-2159.0,0.00019956,2]
[359782753,1746342637512,-2122.69804729,0.00019956,2]
[359782754,1746342637544,-1887.30195271,0.00019956,2]
[359782755,1746342637554,-2743.91977923,0.00019956,2]
[359782756,1746342637565,-4015.08022077,0.00019956,2]
[359782757,1746342637574,-186.621,0.00019956,2]
[359782758,1746342637583,-272.379,0.00019956,2]
[359782759,1746342637592,-878.0,0.00019956,2]
[359782760,1746342637601,-878.0,0.00019956,2]
[359782761,1746342637610,-272.51204052,0.00019973,2]
[359782762,1746342637619,-500.0,0.00019973,2]
[359782763,1746342637628,-424.13439279,0.00019973,2]
[359782764,1746342637637,-500.0,0.00019973,2]
[359782765,1746342637646,-1722.304,0.00019974,2]
[359782766,1746342637655,-182.598,0.00019974,2]
[359782767,1746342637665,-151.0,0.00019974,2]
[359782768,1746342637674,-475.47584929,0.00019981,2]
[359782769,1746342637683,-500.0,0.00019981,2]
[359782770,1746342637693,-500.0,0.00019981,2]
[359782771,1746342637702,-500.0,0.00019981,2]
[359782772,1746342637712,-500.0,0.00019981,2]
[359782773,1746342637722,-500.0,0.00019981,2]
[359782774,1746342637731,-500.0,0.00019981,2]
[359782775,1746342637740,-500.0,0.00019981,2]
[359782776,1746342637750,-500.0,0.00019981,2]
[359782777,1746342637759,-500.0,0.00019981,2]
[359782778,1746342637769,-500.0,0.00019981,2]
[359782779,1746342637778,-500.0,0.00019981,2]